[Event "Mercoledì sera Rapid"]
[Site "Chess.com"]
[Date "2020.04.22"]
[Round "1"]
[White "pedrak"]
[Black "sirmale49"]
[Result "1-0"]
[WhiteElo "1748"]
[BlackElo "1410"]
[TimeControl "720+3"]
[EndTime "11:45:24 PDT"]
[Termination "pedrak ha vinto per abbandono"]

1. d4 {[%clk 0:12:02.1]} 1... d5 {[%clk 0:11:53]} 2. Nf3 {[%clk 0:12:02.4]} 2...
Nc6 {[%clk 0:11:48.4]} 3. Bf4 {[%clk 0:12:02.7]} 3... Nf6 {[%clk 0:11:36.8]} 4.
Nbd2 {[%clk 0:12:03.2]} 4... e6 {[%clk 0:11:36.8]} 5. e3 {[%clk 0:12:04]} 5...
Bd6 {[%clk 0:11:37.4]} 6. Bg3 {[%clk 0:12:04.4]} 6... Qe7 {[%clk 0:11:23.2]} 7.
Ne5 {[%clk 0:12:01.5]} 7... O-O {[%clk 0:11:05]} 8. c3 {[%clk 0:11:59.2]} 8...
Nd7 {[%clk 0:10:56.8]} 9. Nxd7 {[%clk 0:11:45.9]} 9... Bxd7 {[%clk 0:10:56.3]}
10. Bd3 {[%clk 0:11:36.1]} 10... f5 {[%clk 0:10:52.5]} 11. f4 {[%clk 0:11:17.3]}
11... Rf7 {[%clk 0:10:20]} 12. O-O {[%clk 0:11:17.3]} 12... g6 {[%clk
0:10:04.5]} 13. Nf3 {[%clk 0:11:17.6]} 13... h6 {[%clk 0:09:33.8]} 14. Bh4
{[%clk 0:11:11.9]} 14... Qf8 {[%clk 0:09:19.9]} 15. Qe1 {[%clk 0:11:06.5]} 15...
Be7 {[%clk 0:08:53.4]} 16. Bxe7 {[%clk 0:11:06.8]} 16... Qxe7 {[%clk 0:08:53]}
17. Kh1 {[%clk 0:10:37.5]} 17... Rg7 {[%clk 0:08:44.8]} 18. Rg1 {[%clk
0:10:11.6]} 18... Rf8 {[%clk 0:08:09.1]} 19. b4 {[%clk 0:09:58.8]} 19... g5
{[%clk 0:07:39.8]} 20. b5 {[%clk 0:09:56.6]} 20... g4 {[%clk 0:07:01.9]} 21.
bxc6 {[%clk 0:09:42]} 21... gxf3 {[%clk 0:06:46.2]} 22. cxd7 {[%clk 0:09:42.6]}
22... Rxg2 {[%clk 0:06:23.5]} 23. Rxg2+ {[%clk 0:09:31]} 23... fxg2+ {[%clk
0:06:24.1]} 24. Kxg2 {[%clk 0:09:32.4]} 24... Qg7+ {[%clk 0:06:24.1]} 25. Qg3
{[%clk 0:09:33.5]} 25... Rd8 {[%clk 0:06:05.8]} 26. Rb1 {[%clk 0:09:31.9]} 26...
Rxd7 {[%clk 0:05:48.8]} 27. Rxb7 {[%clk 0:09:32.3]} 27... Qxg3+ {[%clk
0:05:30.6]} 28. hxg3 {[%clk 0:09:32.5]} 28... h5 {[%clk 0:05:23.7]} 29. Rxa7
{[%clk 0:09:31.2]} 29... Rg7 {[%clk 0:05:22.6]} 30. Kh2 {[%clk 0:09:26.8]} 30...
Rh7 {[%clk 0:05:12.8]} 31. Kh3 {[%clk 0:09:06.1]} 31... Rg7 {[%clk 0:05:04.7]}
32. Be2 {[%clk 0:09:01.3]} 32... Rh7 {[%clk 0:04:58.1]} 33. Rb7 {[%clk
0:08:57.8]} 1-0

[Event "Mercoledì sera Rapid"]
[Site "Chess.com"]
[Date "2020.04.22"]
[Round "1"]
[White "lionblu1"]
[Black "SanSecondoPR"]
[Result "0-1"]
[WhiteElo "1372"]
[BlackElo "1226"]
[TimeControl "720+3"]
[EndTime "11:45:48 PDT"]
[Termination "SanSecondoPR ha vinto per scaccomatto"]

1. d4 {[%clk 0:12:01.5]} 1... d5 {[%clk 0:12:00.8]} 2. c4 {[%clk 0:12:02]} 2...
e5 {[%clk 0:12:00.5]} 3. cxd5 {[%clk 0:11:58.4]} 3... Qxd5 {[%clk 0:12:00.6]} 4.
Nf3 {[%clk 0:11:53.8]} 4... e4 {[%clk 0:12:00.8]} 5. Nc3 {[%clk 0:11:53.2]} 5...
Bb4 {[%clk 0:11:59.4]} 6. Nd2 {[%clk 0:11:39.9]} 6... Bxc3 {[%clk 0:11:58.2]} 7.
bxc3 {[%clk 0:11:40.1]} 7... Nf6 {[%clk 0:11:49.7]} 8. e3 {[%clk 0:11:38.8]}
8... O-O {[%clk 0:11:45.7]} 9. c4 {[%clk 0:11:35.7]} 9... Qg5 {[%clk 0:11:44.2]}
10. g3 {[%clk 0:11:09.9]} 10... Bg4 {[%clk 0:11:37.7]} 11. Qb3 {[%clk
0:10:58.1]} 11... b6 {[%clk 0:11:04.5]} 12. Bg2 {[%clk 0:10:56.5]} 12... c6
{[%clk 0:11:00.9]} 13. Nxe4 {[%clk 0:10:41.9]} 13... Nxe4 {[%clk 0:10:55.7]} 14.
Bxe4 {[%clk 0:10:42.9]} 14... Nd7 {[%clk 0:10:33.1]} 15. Qc2 {[%clk 0:10:09.2]}
15... f5 {[%clk 0:10:30.4]} 16. Bxc6 {[%clk 0:09:59.4]} 16... Rad8 {[%clk
0:10:19.9]} 17. Bd5+ {[%clk 0:09:56]} 17... Kh8 {[%clk 0:10:15.1]} 18. Bg2
{[%clk 0:09:53.3]} 18... Nf6 {[%clk 0:10:05.3]} 19. O-O {[%clk 0:09:44.2]} 19...
Qg6 {[%clk 0:09:40.7]} 20. Ba3 {[%clk 0:09:29]} 20... Rf7 {[%clk 0:09:30.1]} 21.
Rae1 {[%clk 0:08:53.5]} 21... Rc7 {[%clk 0:08:59.8]} 22. Qd3 {[%clk 0:07:24.9]}
22... Qf7 {[%clk 0:08:36.3]} 23. e4 {[%clk 0:07:00.2]} 23... fxe4 {[%clk
0:08:17.2]} 24. Bxe4 {[%clk 0:06:55.3]} 24... Nxe4 {[%clk 0:08:01.1]} 25. Qxe4
{[%clk 0:06:54.5]} 25... Bh3 {[%clk 0:07:45.9]} 26. d5 {[%clk 0:06:40.7]} 26...
Bxf1 {[%clk 0:07:37.4]} 27. Kxf1 {[%clk 0:06:39.9]} 27... h6 {[%clk 0:07:05]}
28. Bb2 {[%clk 0:06:10.1]} 28... Rf8 {[%clk 0:06:53.2]} 29. Qd4 {[%clk
0:06:03.4]} 29... Qf3 {[%clk 0:06:36.8]} 30. Re3 {[%clk 0:05:49.5]} 30... Qxf2#
{[%clk 0:06:26.9]} 0-1

[Event "Mercoledì sera Rapid"]
[Site "Chess.com"]
[Date "2020.04.22"]
[Round "1"]
[White "fausto2p"]
[Black "sergiodone"]
[Result "0-1"]
[WhiteElo "964"]
[BlackElo "1424"]
[TimeControl "720+3"]
[EndTime "11:48:54 PDT"]
[Termination "sergiodone ha vinto per tempo"]

1. d4 {[%clk 0:11:42]} 1... Nf6 {[%clk 0:11:59.3]} 2. c4 {[%clk 0:11:42.7]} 2...
c5 {[%clk 0:12:00]} 3. d5 {[%clk 0:11:40.8]} 3... b5 {[%clk 0:12:00.9]} 4. cxb5
{[%clk 0:11:36.5]} 4... a6 {[%clk 0:12:00.6]} 5. e3 {[%clk 0:11:35.7]} 5... axb5
{[%clk 0:12:02.1]} 6. Bxb5 {[%clk 0:11:19.5]} 6... Qb6 {[%clk 0:11:56.9]} 7. Nc3
{[%clk 0:11:08.2]} 7... Ba6 {[%clk 0:11:57.4]} 8. Bxa6 {[%clk 0:10:56.7]} 8...
Qxa6 {[%clk 0:11:57.1]} 9. a3 {[%clk 0:10:47.2]} 9... d6 {[%clk 0:11:57.1]} 10.
Nge2 {[%clk 0:10:25.5]} 10... Nbd7 {[%clk 0:11:58.6]} 11. O-O {[%clk 0:10:25.4]}
11... g6 {[%clk 0:12:00.5]} 12. Qc2 {[%clk 0:09:34.5]} 12... Bg7 {[%clk
0:12:03.4]} 13. Bd2 {[%clk 0:09:22.6]} 13... Bf8 {[%clk 0:12:06.3]} 14. e4
{[%clk 0:07:40]} 14... Bg7 {[%clk 0:12:09.2]} 15. f4 {[%clk 0:06:34.7]} 15...
O-O {[%clk 0:12:12.1]} 16. Rfe1 {[%clk 0:06:15.7]} 16... Rfb8 {[%clk 0:12:15]}
17. Ng3 {[%clk 0:05:27.7]} 17... Qb7 {[%clk 0:12:17.9]} 18. Reb1 {[%clk
0:05:17.8]} 18... h5 {[%clk 0:11:53.1]} 19. f5 {[%clk 0:05:10.8]} 19... h4
{[%clk 0:11:50]} 20. Nge2 {[%clk 0:04:52.7]} 20... Ne5 {[%clk 0:11:42.4]} 21.
fxg6 {[%clk 0:04:49.7]} 21... fxg6 {[%clk 0:11:42.6]} 22. Nf4 {[%clk 0:04:31.7]}
22... c4 {[%clk 0:11:01.1]} 23. Ne6 {[%clk 0:04:14.9]} 23... Qa7+ {[%clk
0:10:51.1]} 24. Kh1 {[%clk 0:04:07.4]} 24... Nd3 {[%clk 0:10:31.1]} 25. Be1
{[%clk 0:03:11.8]} 25... Qe3 {[%clk 0:09:46.6]} 26. Bxh4 {[%clk 0:02:52.2]}
26... Ng4 {[%clk 0:09:40.3]} 27. Rf1 {[%clk 0:02:35.9]} 27... Rxb2 {[%clk
0:09:34.4]} 28. Qd1 {[%clk 0:00:56.4]} 28... Ngf2+ {[%clk 0:09:27.4]} 29. Bxf2
{[%clk 0:00:52]} 29... Nxf2+ {[%clk 0:09:26.9]} 30. Rxf2 {[%clk 0:00:42.1]}
30... Qxf2 {[%clk 0:09:08.3]} 0-1

[Event "Mercoledì sera Rapid"]
[Site "Chess.com"]
[Date "2020.04.22"]
[Round "1"]
[White "Mrtre7"]
[Black "BAKR1980"]
[Result "1/2-1/2"]
[WhiteElo "1405"]
[BlackElo "1530"]
[TimeControl "720+3"]
[EndTime "11:58:41 PDT"]
[Termination "Partita patta per ripetizione di mosse"]

1. d4 {[%clk 0:12:02.5]} 1... d5 {[%clk 0:12:01.1]} 2. c4 {[%clk 0:12:04.5]}
2... c6 {[%clk 0:11:57.1]} 3. Nf3 {[%clk 0:12:03.9]} 3... Bg4 {[%clk 0:11:56.6]}
4. Nc3 {[%clk 0:11:52.6]} 4... Nf6 {[%clk 0:11:19.4]} 5. e3 {[%clk 0:11:13.8]}
5... e6 {[%clk 0:11:16.7]} 6. Bd3 {[%clk 0:11:03.3]} 6... dxc4 {[%clk
0:11:17.3]} 7. Bxc4 {[%clk 0:11:04.7]} 7... Bd6 {[%clk 0:11:10.9]} 8. O-O {[%clk
0:11:04.3]} 8... O-O {[%clk 0:11:11.8]} 9. Re1 {[%clk 0:11:01.4]} 9... Bc7
{[%clk 0:10:50.3]} 10. e4 {[%clk 0:10:59.4]} 10... h6 {[%clk 0:10:30.1]} 11. h3
{[%clk 0:10:48.7]} 11... Bh5 {[%clk 0:10:29.6]} 12. e5 {[%clk 0:10:29.9]} 12...
Nh7 {[%clk 0:10:06.8]} 13. Ne4 {[%clk 0:09:58]} 13... Bxf3 {[%clk 0:09:49.9]}
14. gxf3 {[%clk 0:09:46.6]} 14... Bb6 {[%clk 0:09:41.2]} 15. Be3 {[%clk
0:09:41.1]} 15... Qh4 {[%clk 0:09:29.2]} 16. Kh2 {[%clk 0:09:40.8]} 16... Bc7
{[%clk 0:09:10.9]} 17. Rg1 {[%clk 0:09:38.8]} 17... b5 {[%clk 0:09:07.7]} 18.
Rg4 {[%clk 0:09:15.7]} 18... Qh5 {[%clk 0:08:55.8]} 19. Bd3 {[%clk 0:08:34.9]}
19... f5 {[%clk 0:08:42.4]} 20. Ng3 {[%clk 0:08:18.2]} 20... Qf7 {[%clk
0:08:16.1]} 21. Rf4 {[%clk 0:07:55.1]} 21... g5 {[%clk 0:07:56.2]} 22. Nxf5
{[%clk 0:07:32.7]} 22... exf5 {[%clk 0:07:51.8]} 23. Rxf5 {[%clk 0:07:32.6]}
23... Qe6 {[%clk 0:07:32.1]} 24. Rxf8+ {[%clk 0:07:21.6]} 24... Nxf8 {[%clk
0:07:32.3]} 25. Qc2 {[%clk 0:06:26.9]} 25... Nbd7 {[%clk 0:06:52.7]} 26. a4
{[%clk 0:06:14.6]} 26... c5 {[%clk 0:06:40.8]} 27. axb5 {[%clk 0:05:55.7]} 27...
Kg7 {[%clk 0:06:12.2]} 28. Ra6 {[%clk 0:05:00.1]} 28... Bb6 {[%clk 0:05:51.5]}
29. Bf5 {[%clk 0:04:26.2]} 29... Qe7 {[%clk 0:05:39.7]} 30. Qe4 {[%clk
0:04:07.3]} 30... cxd4 {[%clk 0:04:15.2]} 31. Bxd4 {[%clk 0:03:20]} 31... Bxd4
{[%clk 0:04:02.7]} 32. Qxd4 {[%clk 0:02:14.5]} 32... Qxe5+ {[%clk 0:03:58.1]}
33. Qxe5+ {[%clk 0:02:13.1]} 33... Nxe5 {[%clk 0:03:59.5]} 34. Kg3 {[%clk
0:01:58.5]} 34... h5 {[%clk 0:03:22.9]} 35. b6 {[%clk 0:01:52.8]} 35... h4+
{[%clk 0:03:22.2]} 36. Kg2 {[%clk 0:01:53.1]} 36... Nc4 {[%clk 0:02:11.6]} 37.
Rxa7+ {[%clk 0:01:02.3]} 37... Rxa7 {[%clk 0:02:12.7]} 38. bxa7 {[%clk
0:01:04.3]} 38... Nb6 {[%clk 0:02:13.2]} 39. Be4 {[%clk 0:01:06.3]} 39... Nfd7
{[%clk 0:02:08.7]} 40. f4 {[%clk 0:00:57]} 40... Nc5 {[%clk 0:02:04.9]} 41. Bc6
{[%clk 0:00:52]} 41... gxf4 {[%clk 0:02:04.8]} 42. Kf3 {[%clk 0:00:52.8]} 42...
Ne6 {[%clk 0:01:54.3]} 43. a8=Q {[%clk 0:00:44.1]} 43... Nxa8 {[%clk 0:01:55]}
44. Bxa8 {[%clk 0:00:45.9]} 44... Kf6 {[%clk 0:01:57]} 45. b4 {[%clk 0:00:47.3]}
45... Ke5 {[%clk 0:01:58.8]} 46. b5 {[%clk 0:00:47.7]} 46... Kd6 {[%clk
0:02:00.4]} 47. b6 {[%clk 0:00:46.2]} 47... Kd7 {[%clk 0:01:58.5]} 48. b7 {[%clk
0:00:47.9]} 48... Kc7 {[%clk 0:01:59.6]} 49. Ke4 {[%clk 0:00:47.7]} 49... Kb8
{[%clk 0:01:58.1]} 50. Ke5 {[%clk 0:00:49.4]} 50... Ng5 {[%clk 0:01:55.1]} 51.
Kxf4 {[%clk 0:00:48.2]} 51... Nxh3+ {[%clk 0:01:57.1]} 52. Kf3 {[%clk
0:00:49.7]} 52... Ng1+ {[%clk 0:01:54.3]} 53. Kg2 {[%clk 0:00:51.4]} 53... Ne2
{[%clk 0:01:55.6]} 54. f3 {[%clk 0:00:51.8]} 54... Nf4+ {[%clk 0:01:53.9]} 55.
Kf2 {[%clk 0:00:53.1]} 55... h3 {[%clk 0:01:55.4]} 56. Kg1 {[%clk 0:00:54.6]}
56... Ka7 {[%clk 0:01:56.1]} 57. Kh2 {[%clk 0:00:54.1]} 57... Kb8 {[%clk
0:01:56.8]} 58. Kg3 {[%clk 0:00:55]} 58... Ka7 {[%clk 0:01:57.5]} 59. Kh2 {[%clk
0:00:57.1]} 59... Kb8 {[%clk 0:01:47.2]} 60. Kg3 {[%clk 0:00:57.8]} 60... Ka7
{[%clk 0:01:48.5]} 61. Kh2 {[%clk 0:00:59.2]} 1/2-1/2

[Event "Mercoledì sera Rapid"]
[Site "Chess.com"]
[Date "2020.04.22"]
[Round "2"]
[White "BAKR1980"]
[Black "sirmale49"]
[Result "1-0"]
[WhiteElo "1552"]
[BlackElo "1402"]
[TimeControl "720+3"]
[EndTime "12:02:20 PDT"]
[Termination "BAKR1980 ha vinto per abbandono"]

1. e4 {[%clk 0:12:02.9]} 1... e5 {[%clk 0:11:53.3]} 2. Nf3 {[%clk 0:12:02.3]}
2... Nc6 {[%clk 0:11:54.5]} 3. Bc4 {[%clk 0:12:03.2]} 3... Nf6 {[%clk
0:11:54.1]} 4. Ng5 {[%clk 0:12:04.1]} 4... d5 {[%clk 0:11:51]} 5. exd5 {[%clk
0:12:05.5]} 5... Nxd5 {[%clk 0:11:51.5]} 6. Nxf7 {[%clk 0:12:06.8]} 6... Kxf7
{[%clk 0:11:47.3]} 7. Qf3+ {[%clk 0:12:08.5]} 7... Ke6 {[%clk 0:11:42.1]} 8. Nc3
{[%clk 0:12:09.7]} 8... Ne7 {[%clk 0:11:30.1]} 9. d4 {[%clk 0:11:45.2]} 9... Nf5
{[%clk 0:10:48.7]} 10. Bxd5+ {[%clk 0:11:40.3]} 10... Ke7 {[%clk 0:10:23.9]} 11.
Bg5+ {[%clk 0:11:40.4]} 1-0

[Event "Mercoledì sera Rapid"]
[Site "Chess.com"]
[Date "2020.04.22"]
[Round "2"]
[White "sergiodone"]
[Black "Lavolpeneldeserto"]
[Result "1-0"]
[WhiteElo "1425"]
[BlackElo "783"]
[TimeControl "720+3"]
[EndTime "12:10:24 PDT"]
[Termination "sergiodone ha vinto per scaccomatto"]

1. e4 {[%clk 0:11:56.2]} 1... e5 {[%clk 0:11:59]} 2. d4 {[%clk 0:11:54.6]} 2...
Nc6 {[%clk 0:11:53.3]} 3. Nf3 {[%clk 0:11:54.8]} 3... f6 {[%clk 0:11:42.7]} 4.
Bc4 {[%clk 0:11:53]} 4... exd4 {[%clk 0:11:34.5]} 5. O-O {[%clk 0:11:46]} 5...
d6 {[%clk 0:11:22.9]} 6. h3 {[%clk 0:11:46.1]} 6... Nge7 {[%clk 0:10:57.3]} 7.
c3 {[%clk 0:11:45.4]} 7... d5 {[%clk 0:10:52.9]} 8. exd5 {[%clk 0:11:45]} 8...
Nxd5 {[%clk 0:10:49.6]} 9. Re1+ {[%clk 0:11:44.8]} 9... Be7 {[%clk 0:10:44.9]}
10. cxd4 {[%clk 0:11:45.5]} 10... Qd6 {[%clk 0:10:26.9]} 11. Nc3 {[%clk
0:11:44.2]} 11... Ndb4 {[%clk 0:09:27]} 12. a3 {[%clk 0:11:04.8]} 12... Na6
{[%clk 0:09:21.9]} 13. b4 {[%clk 0:10:38]} 13... Nab8 {[%clk 0:08:01]} 14. Ne4
{[%clk 0:10:14.1]} 14... Qd8 {[%clk 0:07:36]} 15. Bb2 {[%clk 0:09:44.2]} 15...
a6 {[%clk 0:06:56.6]} 16. Nh4 {[%clk 0:09:32.1]} 16... b5 {[%clk 0:06:53.3]} 17.
Qh5+ {[%clk 0:09:28.3]} 17... g6 {[%clk 0:06:31]} 18. Nxg6 {[%clk 0:09:25.3]}
18... Rg8 {[%clk 0:05:26.2]} 19. Nxe7+ {[%clk 0:09:23.7]} 19... Kxe7 {[%clk
0:05:22.4]} 20. Qf7# {[%clk 0:09:21.5]} 1-0

[Event "Mercoledì sera Rapid"]
[Site "Chess.com"]
[Date "2020.04.22"]
[Round "2"]
[White "SanSecondoPR"]
[Black "pedrak"]
[Result "0-1"]
[WhiteElo "1222"]
[BlackElo "1753"]
[TimeControl "720+3"]
[EndTime "12:22:16 PDT"]
[Termination "pedrak ha vinto per abbandono"]

1. e4 {[%clk 0:12:02.9]} 1... d5 {[%clk 0:11:59.3]} 2. Nf3 {[%clk 0:12:02.7]}
2... dxe4 {[%clk 0:11:59.7]} 3. Ng5 {[%clk 0:12:03.6]} 3... Nf6 {[%clk
0:12:00.7]} 4. d3 {[%clk 0:12:04.5]} 4... Bf5 {[%clk 0:11:59.9]} 5. Nc3 {[%clk
0:11:54.3]} 5... exd3 {[%clk 0:12:00.6]} 6. cxd3 {[%clk 0:11:52.5]} 6... c6
{[%clk 0:12:00.9]} 7. Qa4 {[%clk 0:11:41.3]} 7... e6 {[%clk 0:11:16.7]} 8. Be3
{[%clk 0:11:28.9]} 8... Be7 {[%clk 0:11:11.5]} 9. O-O-O {[%clk 0:11:23.8]} 9...
Nbd7 {[%clk 0:11:08.5]} 10. Nge4 {[%clk 0:11:11]} 10... Nd5 {[%clk 0:10:50]} 11.
Bd2 {[%clk 0:10:53.8]} 11... N7b6 {[%clk 0:10:42.7]} 12. Qb3 {[%clk 0:10:40.7]}
12... Qc7 {[%clk 0:09:37.2]} 13. h3 {[%clk 0:10:27.7]} 13... Bg6 {[%clk
0:09:27.7]} 14. g3 {[%clk 0:10:15.1]} 14... O-O-O {[%clk 0:09:11.3]} 15. Kb1
{[%clk 0:09:51.3]} 15... Nd7 {[%clk 0:08:34.8]} 16. Ka1 {[%clk 0:09:40.4]} 16...
Nc5 {[%clk 0:08:32.3]} 17. Nxc5 {[%clk 0:09:22]} 17... Bxc5 {[%clk 0:08:31.9]}
18. Qa4 {[%clk 0:08:42]} 18... Bxf2 {[%clk 0:08:07.4]} 19. Rc1 {[%clk
0:08:26.7]} 19... Nxc3 {[%clk 0:07:58]} 20. Bxc3 {[%clk 0:07:47.2]} 20... f6
{[%clk 0:07:51.4]} 21. d4 {[%clk 0:07:35.6]} 21... Be4 {[%clk 0:07:26.2]} 22.
Rh2 {[%clk 0:07:13.4]} 22... Bxg3 {[%clk 0:07:27.1]} 23. Ba5 {[%clk 0:06:28.3]}
23... Qb8 {[%clk 0:06:58.5]} 24. Bxd8 {[%clk 0:06:05.3]} 24... Bxh2 {[%clk
0:06:54.5]} 25. Be7 {[%clk 0:05:20]} 25... Re8 {[%clk 0:06:41.6]} 26. Bc5 {[%clk
0:05:18.8]} 26... b6 {[%clk 0:06:24.6]} 27. Ba6+ {[%clk 0:05:15.2]} 27... Kc7
{[%clk 0:06:23.2]} 28. Ba3 {[%clk 0:05:00.6]} 28... Rd8 {[%clk 0:05:34.1]} 29.
Qb4 {[%clk 0:04:51.8]} 29... Bd6 {[%clk 0:05:22.4]} 30. Qb3 {[%clk 0:04:36.4]}
30... Bxa3 {[%clk 0:05:19.5]} 31. Qxa3 {[%clk 0:04:32]} 31... Rd6 {[%clk
0:05:08.9]} 32. b4 {[%clk 0:04:01]} 32... b5 {[%clk 0:04:51.1]} 33. Qa5+ {[%clk
0:03:44]} 33... Qb6 {[%clk 0:04:52.3]} 34. Bxb5 {[%clk 0:03:33.8]} 34... Qxa5
{[%clk 0:04:49.4]} 35. bxa5 {[%clk 0:03:33.9]} 35... Rxd4 {[%clk 0:04:50]} 36.
a4 {[%clk 0:03:17.5]} 36... Kd6 {[%clk 0:04:46.7]} 37. Bf1 {[%clk 0:03:03.7]}
37... Rxa4+ {[%clk 0:04:45.4]} 38. Kb2 {[%clk 0:03:01.5]} 38... Rxa5 {[%clk
0:04:46.4]} 39. Rd1+ {[%clk 0:02:59.4]} 39... Bd5 {[%clk 0:04:47.4]} 40. Kc3
{[%clk 0:02:51.4]} 40... Ra2 {[%clk 0:04:41.6]} 41. Bd3 {[%clk 0:02:34.3]} 41...
a5 {[%clk 0:04:31.5]} 42. Bxh7 {[%clk 0:02:29.9]} 42... Ra3+ {[%clk 0:04:32.8]}
43. Kb2 {[%clk 0:02:21.6]} 43... Rxh3 {[%clk 0:04:33.4]} 44. Bd3 {[%clk
0:02:12.2]} 44... Rh2+ {[%clk 0:04:28.3]} 45. Kc3 {[%clk 0:02:07]} 45... e5
{[%clk 0:04:20.8]} 46. Bc4 {[%clk 0:01:59.7]} 46... Kc5 {[%clk 0:04:16]} 47. Ba6
{[%clk 0:01:52.7]} 47... Rh3+ {[%clk 0:04:16.1]} 48. Bd3 {[%clk 0:01:49.1]}
48... e4 {[%clk 0:04:15.6]} 0-1

[Event "Mercoledì sera Rapid"]
[Site "Chess.com"]
[Date "2020.04.22"]
[Round "2"]
[White "lionblu1"]
[Black "Mrtre7"]
[Result "1-0"]
[WhiteElo "1426"]
[BlackElo "1349"]
[TimeControl "720+3"]
[EndTime "12:23:21 PDT"]
[Termination "lionblu1 ha vinto per abbandono"]

1. d4 {[%clk 0:12:02.9]} 1... d5 {[%clk 0:11:54.6]} 2. c4 {[%clk 0:12:03.7]}
2... c6 {[%clk 0:11:45.3]} 3. cxd5 {[%clk 0:12:03.9]} 3... cxd5 {[%clk
0:11:46.5]} 4. Nf3 {[%clk 0:12:04.8]} 4... Nf6 {[%clk 0:11:48]} 5. Nc3 {[%clk
0:12:05.8]} 5... Bf5 {[%clk 0:11:43.8]} 6. Bf4 {[%clk 0:11:53.1]} 6... a6 {[%clk
0:11:36.5]} 7. e3 {[%clk 0:11:40.6]} 7... e6 {[%clk 0:11:35.3]} 8. Ne5 {[%clk
0:11:40.5]} 8... Nc6 {[%clk 0:11:29]} 9. Nxc6 {[%clk 0:11:39.4]} 9... bxc6
{[%clk 0:11:30.6]} 10. Rc1 {[%clk 0:11:26.4]} 10... Bd6 {[%clk 0:11:30.8]} 11.
Bg3 {[%clk 0:11:24.7]} 11... Bxg3 {[%clk 0:11:17.8]} 12. hxg3 {[%clk 0:11:23.9]}
12... Qd6 {[%clk 0:11:14.6]} 13. Be2 {[%clk 0:11:11.4]} 13... O-O {[%clk
0:11:15.2]} 14. g4 {[%clk 0:10:48.8]} 14... Bg6 {[%clk 0:11:09.2]} 15. g5 {[%clk
0:10:21]} 15... Nd7 {[%clk 0:10:57.1]} 16. Bd3 {[%clk 0:10:00.3]} 16... f5
{[%clk 0:10:46.6]} 17. gxf6 {[%clk 0:09:39.2]} 17... Rxf6 {[%clk 0:10:47.8]} 18.
Qg4 {[%clk 0:08:26.1]} 18... Raf8 {[%clk 0:10:07]} 19. Bxg6 {[%clk 0:08:14]}
19... Rxg6 {[%clk 0:10:05.1]} 20. Qe2 {[%clk 0:07:35.1]} 20... Rxg2 {[%clk
0:09:42.4]} 21. Qh5 {[%clk 0:06:55.2]} 21... h6 {[%clk 0:09:21.3]} 22. Rc2
{[%clk 0:06:54.4]} 22... e5 {[%clk 0:06:40.3]} 23. Qh3 {[%clk 0:06:46.6]} 23...
Rg6 {[%clk 0:06:35]} 24. Ne2 {[%clk 0:06:38.6]} 24... Rgf6 {[%clk 0:06:19.3]}
25. Ng3 {[%clk 0:06:27.8]} 25... exd4 {[%clk 0:06:07.9]} 26. exd4 {[%clk
0:06:10.2]} 26... Nb6 {[%clk 0:04:56.9]} 27. Nh5 {[%clk 0:05:59.5]} 27... Rf3
{[%clk 0:04:35.5]} 28. Qg4 {[%clk 0:05:35.4]} 28... Qe7+ {[%clk 0:03:58.4]} 29.
Re2 {[%clk 0:05:10.1]} 29... Qf7 {[%clk 0:03:45.5]} 30. Rh2 {[%clk 0:04:59.9]}
30... Nc4 {[%clk 0:02:59.9]} 31. Rg2 {[%clk 0:04:55.7]} 31... g5 {[%clk
0:02:51.8]} 32. Ng3 {[%clk 0:04:49.3]} 32... Nd6 {[%clk 0:02:46.5]} 33. Rh2
{[%clk 0:04:37.2]} 33... Ne4 {[%clk 0:02:05.7]} 34. Nxe4 {[%clk 0:04:26.6]}
34... dxe4 {[%clk 0:02:03.2]} 35. Rxh6 {[%clk 0:04:11.6]} 35... Qg7 {[%clk
0:01:02.5]} 36. Qe6+ {[%clk 0:03:53]} 36... R8f7 {[%clk 0:00:48.8]} 37. Rg6
{[%clk 0:03:45.4]} 37... Qxg6 {[%clk 0:00:33.5]} 38. Qxg6+ {[%clk 0:03:45.8]}
38... Rg7 {[%clk 0:00:35]} 39. Qxe4 {[%clk 0:03:29.4]} 39... Rh3 {[%clk
0:00:36]} 40. Qe6+ {[%clk 0:03:26.2]} 40... Kh7 {[%clk 0:00:37.2]} 41. Qxh3+
{[%clk 0:03:27.3]} 1-0

[Event "Mercoledì sera Rapid"]
[Site "Chess.com"]
[Date "2020.04.22"]
[Round "3"]
[White "Lavolpeneldeserto"]
[Black "SanSecondoPR"]
[Result "0-1"]
[WhiteElo "742"]
[BlackElo "1229"]
[TimeControl "720+3"]
[EndTime "12:33:33 PDT"]
[Termination "SanSecondoPR ha vinto per abbandono"]

1. d4 {[%clk 0:12:02.9]} 1... d5 {[%clk 0:11:47.2]} 2. Bf4 {[%clk 0:12:03.2]}
2... Nc6 {[%clk 0:11:37.4]} 3. Nf3 {[%clk 0:12:01.9]} 3... g6 {[%clk 0:11:36.5]}
4. Nc3 {[%clk 0:11:56.4]} 4... Nf6 {[%clk 0:11:34.6]} 5. e3 {[%clk 0:11:28.3]}
5... Bg7 {[%clk 0:11:34.7]} 6. Bd3 {[%clk 0:11:26.5]} 6... O-O {[%clk
0:11:33.8]} 7. O-O {[%clk 0:11:22.9]} 7... Bg4 {[%clk 0:11:30.8]} 8. Qd2 {[%clk
0:11:09.3]} 8... Bxf3 {[%clk 0:11:29.8]} 9. gxf3 {[%clk 0:10:51.4]} 9... Nh5
{[%clk 0:11:18.2]} 10. e4 {[%clk 0:10:10.3]} 10... e5 {[%clk 0:11:13.6]} 11. Bh6
{[%clk 0:10:07.3]} 11... Qh4 {[%clk 0:10:51]} 12. Bxg7 {[%clk 0:09:41.9]} 12...
Kxg7 {[%clk 0:10:43.7]} 13. Rfe1 {[%clk 0:09:16.6]} 13... Nxd4 {[%clk
0:10:41.6]} 14. Nxd5 {[%clk 0:09:02.8]} 14... Nxf3+ {[%clk 0:10:39.6]} 15. Kf1
{[%clk 0:08:51]} 15... Nxd2+ {[%clk 0:10:34.5]} 16. Ke2 {[%clk 0:08:46.3]} 16...
Nxe4 {[%clk 0:10:21]} 17. Kd1 {[%clk 0:08:35.1]} 17... Nxf2+ {[%clk 0:10:17.5]}
18. Kd2 {[%clk 0:08:10.6]} 18... Nxd3 {[%clk 0:10:12.9]} 19. cxd3 {[%clk
0:08:09.5]} 19... Qxh2+ {[%clk 0:10:05.9]} 20. Kd1 {[%clk 0:08:08.8]} 20... Qxb2
{[%clk 0:10:04.4]} 21. Rc1 {[%clk 0:08:05.4]} 21... Qxa2 {[%clk 0:10:01.7]} 22.
Nxc7 {[%clk 0:08:02.5]} 22... Qa5 {[%clk 0:09:55]} 23. Rc2 {[%clk 0:07:42.1]}
23... Rad8 {[%clk 0:09:51.1]} 0-1